Workbook

Sheet Instructions

Sheet Questions
A1: Index | B1: Questions | C1: Assessment | D1: Rating | F1: Assessment | G1: Rating
A2: N1 | B2: Your Product or Service is inexpensive or you have low margins | C2: Neither | D2: =VLOOKUP(C2,$F$2:$G$6,2, FALSE) -> 3 | F2: Strongly Agree | G2: 1
A3: N2 | B3: Opportunities for repeat or add-on sales are limited | C3: Neither | D3: =VLOOKUP(C3,$F$2:$G$6,2, FALSE) -> 3 | F3: Agree | G3: 2
A4: N3 | B4: Prospects and customers find it difficult to locate your business | C4: Neither | D4: 3 | F4: Neither | G4: 3
A5: N4 | B5: Prospects and customers are unaware of your products, services, or business | C5: Neither | D5: 3 | F5: Disagree | G5: 4
A6: EF1 | B6: There are no social or professional organizations related to your business your Prospects or Customers belong to | C6: Neither | D6: 3 | F6: Strongly Disagree | G6: 5
A7: EF2 | B7: There are industry, trade, or consumer publications (print or electronic) targeted to your market/customers | C7: Neither | D7: 3
A8: EF3 | B8: Customers can not be identified through purchased lists | C8: Neither | D8: 3
A9: EF4 | B9: Events or trade shows do not targeted to your market/customers | C9: Neither | D9: 3
A10: EF5 | B10: There are no distribution market services your market | C10: Neither | D10: 3
A11: EF6 | B11: Customers do not know where to look for your organization | C11: Strongly Disagree | D11: 5
A12: SP1 | B12: The sale is based upon practical considerations rather than emotional considerations | C12: Strongly Disagree | D12: 5
A13: SP2 | B13: The product or service is not a high priority item | C13: Strongly Disagree | D13: 5
A14: SP3 | B14: The business does have the resources to support an intensive sales effort | C14: Strongly Disagree | D14: 5
A15: SP4 | B15: The product or service needs to be purchased only once | C15: Strongly Agree | D15: 1
A16: DV1 | B16: Sale support is required | C16: Agree | D16: 2
A17: DV2 | B17: Products require customization | C17: Neither | D17: 3
A18: DV3 | B18: Sales cycle is very long | C18: Agree | D18: 2
A19: DV4 | B19: There are many competitors in your market niche | C19: Neither | D19: 3
A20: DV5 | B20: There are limited opportunities for follow-up sales | C20: Disagree | D20: 4
A21: RS1 | B21: The dollar value of each sale is small | C21: Neither | D21: 3
A22: RS2 | B22: Customer service costs are high | C22: Strongly Agree | D22: 1
A23: RS3 | B23: The purchase is a low-priority decision | C23: Agree | D23: 2
A24: RS4 | B24: Your business sales staff is small | C24: Disagree | D24: 4
A25: OS1 | B25: Customers are buying and expected result instead of a defined product or service | C25: Disagree | D25: 4
A26: OS2 | B26: Customer statisifaction depends upon the application | C26: Strongly Agree | D26: 1
A27: OS3 | B27: The Product or Service is new and customers are not familiar with its operation or process | C27: Strongly Agree | D27: 1
A28: OS4 | B28: Product or Service is customized to the customer's application | C28: Disagree | D28: 4
A29: OS5 | B29: Product or Service interfaces with multiple other product or services | C29: Strongly Agree | D29: 1
A30: ITC1 | B30: Product or Service is sold through a distribution network | C30: Strongly Agree | D30: 1
A31: ITC2 | B31: Practicality is more influential on the Customer's buying decision than fun or emotion | C31: Neither | D31: 3
A32: ITC3 | B32: Customers aren't confident of the purchasing process | C32: Strongly Agree | D32: 1
A33: ITC4 | B33: Purchases can easily be delayed or postponed | C33: Strongly Agree | D33: 1
A34: ITC5 | B34: You have a limited number of contacts with any one customer | C34: Strongly Disagree | D34: 5
A35: CA1 | B35: Distribution channel is involved with the product or service | C35: Strongly Agree | D35: 1
A36: CA2 | B36: Competitors are established in the market | C36: Strongly Disagree | D36: 5
A37: CA3 | B37: Business has fewer resources than competitors | C37: Strongly Disagree | D37: 5
A38: CA4 | B38: Customers can quickly tell which product or service is best | C38: Strongly Disagree | D38: 5
A39: CA5 | B39: Buyers are willing to shop for the best product or service | C39: Strongly Disagree | D39: 5
A40: PV1 | B40: Customers consider product or service a discretionary purchase | C40: Strongly Disagree | D40: 5
A41: PV2 | B41: There are many other options to purchasing | C41: Strongly Disagree | D41: 5
A42: PV3 | B42: Products or Services are not well known or unproven | C42: Strongly Disagree | D42: 5
A43: PV4 | B43: Customers are cost-conscious or value -oriented | C43: Strongly Disagree | D43: 5
A44: EP1 | B44: Market is highly competitive | C44: Strongly Agree | D44: 1
A45: EP2 | B45: Customers may not elect to purchase product or service | C45: Strongly Agree | D45: 1
A46: EP3 | B46: The sale is to a customer that provides limited revenue opportunity | C46: Strongly Agree | D46: 1
A47: EP4 | B47: People have a short buying process | C47: Strongly Agree | D47: 1
A48: SS1 | B48: Business has a complex or unknown product or service | C48: Strongly Disagree | D48: 5
A49: SS2 | B49: Sales revenue generate from each customer are low | C49: Strongly Disagree | D49: 5
A50: SS3 | B50: Business's resources are low | C50: Strongly Disagree | D50: 5
A51: SS4 | B51: Customers and Prospects are widely dispersed | C51: Strongly Disagree | D51: 5
A52: SS5 | B52: Purchase is not a high priority for the customer | C52: Strongly Disagree | D52: 5
A53: PA1 | B53: Customers are difficult to locate | C53: Strongly Disagree | D53: 5
A54: PA2 | B54: Unsure of when a customer will purchase | C54: Strongly Agree | D54: 1
A55: PA3 | B55: Low to moderate princing and average sale value | C55: Disagree | D55: 4
A56: PA4 | B56: Need to establish a new brand, product or service against established compeitition | C56: Strongly Agree | D56: 1
A57: PA5 | B57: Business has a new category of product or service | C57: Disagree | D57: 4
A58: HM1 | B58: The margin and sales volume are not sufficent to cover operating costs and profit | C58: Strongly Agree | D58: 1
A59: US1 | B59: A purchase is rarely made | C59: Strongly Agree | D59: 1
A60: US2 | B60: Sales costs to purchase price is relatively high | C60: Neither | D60: 3
A61: US3 | B61: Future customer contact is unlikely | C61: Strongly Agree | D61: 1
A62: US4 | B62: Customer purchase is not a high priority item | C62: Strongly Agree | D62: 1
A63: PC1 | B63: There is turnover in customer contacts who use product or service | C63: Neither | D63: 3
A64: PC2 | B64: Product or Service interfaces with multiple other product or services | C64: Strongly Agree | D64: 1
A65: PC3 | B65: The market has many rapid changes | C65: Strongly Agree | D65: 1
A66: PC4 | B66: Customers don't have the knowledge to adjust for or correct small problems | C66: Neither | D66: 3
A67: PC5 | B67: Product or service replaces a well know product or service | C67: Strongly Agree | D67: =VLOOKUP(C67,$F$2:$G$6,2, FALSE) -> 1
A68: ME1 | B68: Business Concept is untested | C68: Strongly Agree | D68: =VLOOKUP(C68,$F$2:$G$6,2, FALSE) -> 1
A69: ME2 | B69: Product Lifecycle is short or compeitor's product lifecycle is shorter | C69: Neither | D69: =VLOOKUP(C69,$F$2:$G$6,2, FALSE) -> 3
A70: ME3 | B70: Business has limited resources to draw upon | C70: Strongly Agree | D70: =VLOOKUP(C70,$F$2:$G$6,2, FALSE) -> 1
A71: ME4 | B71: Business has a major competitor or highly competitive market | C71: Strongly Agree | D71: =VLOOKUP(C71,$F$2:$G$6,2, FALSE) -> 1
A72: MSR1 | B72: Customers do not perceive any significant differences between products | C72: Strongly Agree | D72: =VLOOKUP(C72,$F$2:$G$6,2, FALSE) -> 1
A73: MSR2 | B73: Large established competitor already exists in market | C73: Strongly Agree | D73: 1
A74: MSR3 | B74: Alternative low-cost marketing methods (events, trade shows, associations and users groups) not viable | C74: Strongly Agree | D74: 1
A75: MSR4 | B75: Business unlikely to gain compeititive advantage through sales and/or distribution tactics | C75: Strongly Agree | D75: 1
A76: MSR5 | B76: Marketing and promotion costs are high | C76: Strongly Agree | D76: 1
A77: TL1 | B77: Customers are heat seekers (gadget and/or new technology lovers) | C77: Strongly Agree | D77: 1
A78: TL2 | B78: Customers rely on cutting edge products for status | C78: Strongly Agree | D78: 1
A79: TL3 | B79: New technology significantly reduces costs or increases productivity | C79: Strongly Agree | D79: 1
A80: TL4 | B80: Current technology has well know deficiencies or limitations | C80: Strongly Agree | D80: 1
A81: TL5 | B81: Rapid product or service changes happen within the industry repeatedly | C81: Strongly Agree | D81: 1

Sheet Assessment Charts

Sheet Recommendations
A1: Recommendations | G1: Compensation Strategies
A2: =IF(Questions!D2<=3,G2, "") -> Improve reasons to purchase (Develop sense of urgency, better value proposition, etc.) | G2: Improve reasons to purchase (Develop sense of urgency, better value proposition, etc.)
A3: =IF(Questions!D3<=3,G3, "") -> Develop a devoted distribution channel | G3: Develop a devoted distribution channel
A4: =IF(Questions!D4<=3,G4, "") -> Ensure placement of product or service and/or promotional materials where customers are | G4: Ensure placement of product or service and/or promotional materials where customers are
A5: =IF(Questions!D5<=3,G5, "") -> Become part of a network of business serving customer needs | G5: Become part of a network of business serving customer needs
A6: =IF(Questions!D6<=3,G6, "") -> Consolidate several products and/or services into high dollar offering that will justify investment in finding a few customers | G6: Consolidate several products and/or services into high dollar offering that will justify investment in finding a few customers
A7: =IF(Questions!D7<=3,G7, "") -> Find new customers through current customers and/or referrals | G7: Find new customers through current customers and/or referrals
A8: =IF(Questions!D8<=3,G8, "") -> Create a cooperative marketing campaign with other businesses serving the same market or having similar problems finding customers in target market | G8: Create a cooperative marketing campaign with other businesses serving the same market or having similar problems finding customers in target market
A9: =IF(Questions!D9<=3,G9, "") -> Offer classes, seminars and/or participate in trade shows to attract prospective customers | G9: Offer classes, seminars and/or participate in trade shows to attract prospective customers
A10: =IF(Questions!D10<=3,G10, "") -> 0
A11: =IF(Questions!D11<=3,G11, "") -> 
A12: =IF(Questions!D12<=3,G12, "") -> 
A13: =IF(Questions!D13<=3,G13, "") -> 
A14: =IF(Questions!D14<=3,G14, "") -> 
A15: =IF(Questions!D15<=3,G15, "") -> 0
A16: =IF(Questions!D16<=3,G16, "") -> 0
A17: =IF(Questions!D17<=3,G17, "") -> 0
A18: =IF(Questions!D18<=3,G18, "") -> 0
A19: =IF(Questions!D19<=3,G19, "") -> 0
A20: =IF(Questions!D20<=3,G20, "") -> 
A21: =IF(Questions!D21<=3,G21, "") -> 0
A22: =IF(Questions!D22<=3,G22, "") -> 0
A23: =IF(Questions!D23<=3,G23, "") -> 0
A24: =IF(Questions!D24<=3,G24, "") -> 
A25: =IF(Questions!D25<=3,G25, "") -> 
A26: =IF(Questions!D26<=3,G26, "") -> 0
A27: =IF(Questions!D27<=3,G27, "") -> 0
A28: =IF(Questions!D28<=3,G28, "") -> 
A29: =IF(Questions!D29<=3,G29, "") -> 0
A30: =IF(Questions!D30<=3,G30, "") -> 0

Sheet Factor Assessment
B1: Factor | C1: Target | D1: Rating | E1: Compensating Tactics | F1: SCORE | H1: Tactics | J1: Strongly Agree | K1: Agree | L1: Neither | M1: Disagree | N1: Strongly Disagree | R1: Score | S1: Rating
A2: GREAT CUSTOMERS | G2: =AVERAGE(F3:F8) -> 63% | H2: Yes | R2: 0% | S2: Poor
A3: Customer Characteristics | B3: Number | C3: High | D3: =VLOOKUP(F3,$R$2:$S$6,2) -> Poor | F3: =(SUM(Questions!D2:D5))/(COUNT(Questions!D2:D5)*5) -> 60% | G3: =AVERAGE(F3:F5) -> 69% | H3: No | J3: =COUNTIF(Questions!$C$2:$C$5,Questions!$F$2) -> 0 | K3: =COUNTIF(Questions!$C$2:$C$5,Questions!$F$3) -> 0 | L3: =COUNTIF(Questions!$C$2:$C$5,Questions!$F$4) -> 4 | M3: =COUNTIF(Questions!$C$2:$C$5,Questions!$F$5) -> 0 | N3: =COUNTIF(Questions!$C$2:$C$5,Questions!$F$6) -> 0 | R3: 66% | S3: Fair
B4: Ease of Finding | C4: Easy | D4: Fair | F4: =(SUM(Questions!D6:D11))/(COUNT(Questions!D6:D11)*5) -> 67% | J4: =COUNTIF(Questions!$C$6:$C$11,Questions!$F$2) -> 0 | K4: =COUNTIF(Questions!$C$6:$C$11,Questions!$F$3) -> 0 | L4: =COUNTIF(Questions!$C$6:$C$11,Questions!$F$4) -> 5 | M4: =COUNTIF(Questions!$C$6:$C$11,Questions!$F$5) -> 0 | N4: =COUNTIF(Questions!$C$6:$C$11,Questions!$F$6) -> 1 | R4: 75% | S4: Average
B5: Spending Pattern | C5: Prolific | D5: Average | F5: =(SUM(Questions!D12:D15))/(COUNT(Questions!D12:D15)*5) -> 80% | J5: =COUNTIF(Questions!$C$12:$C$15,Questions!$F$2) -> 1 | K5: =COUNTIF(Questions!$C$12:$C$15,Questions!$F$3) -> 0 | L5: =COUNTIF(Questions!$C$12:$C$15,Questions!$F$4) -> 0 | M5: =COUNTIF(Questions!$C$12:$C$15,Questions!$F$5) -> 0 | N5: =COUNTIF(Questions!$C$12:$C$15,Questions!$F$6) -> 3 | R5: 85% | S5: Good
A6: Customer Value to Company | B6: $ Value of Sale | C6: High | D6: Poor | F6: =(SUM(Questions!D16:D20))/(COUNT(Questions!D16:D20)*5) -> 56% | G6: =AVERAGE(F6:F8) -> 57% | J6: =COUNTIF(Questions!$C$16:$C$20,Questions!$F$2) -> 0 | K6: =COUNTIF(Questions!$C$16:$C$20,Questions!$F$3) -> 2 | L6: =COUNTIF(Questions!$C$16:$C$20,Questions!$F$4) -> 2 | M6: =COUNTIF(Questions!$C$16:$C$20,Questions!$F$5) -> 1 | N6: =COUNTIF(Questions!$C$16:$C$20,Questions!$F$6) -> 0 | R6: 95% | S6: Excellent
B7: Repeat Sales | C7: Many | D7: Fair | F7: =(SUM(Questions!D20:D24))/(COUNT(Questions!D21:D24)*5) -> 70% | J7: =COUNTIF(Questions!$C$21:$C$24,Questions!$F$2) -> 1 | K7: =COUNTIF(Questions!$C$21:$C$24,Questions!$F$3) -> 1 | L7: =COUNTIF(Questions!$C$21:$C$24,Questions!$F$4) -> 1 | M7: =COUNTIF(Questions!$C$21:$C$24,Questions!$F$5) -> 1 | N7: =COUNTIF(Questions!$C$21:$C$24,Questions!$F$6) -> 0
B8: Ongoing Sales Support | C8: Low | D8: Poor | F8: =(SUM(Questions!D25:D29))/(COUNT(Questions!D25:D29)*5) -> 44% | J8: =COUNTIF(Questions!$C$25:$C$29,Questions!$F$2) -> 3 | K8: =COUNTIF(Questions!$C$25:$C$29,Questions!$F$3) -> 0 | L8: =COUNTIF(Questions!$C$25:$C$29,Questions!$F$4) -> 0 | M8: =COUNTIF(Questions!$C$25:$C$29,Questions!$F$5) -> 2 | N8: =COUNTIF(Questions!$C$25:$C$29,Questions!$F$6) -> 0
A9: EASY SALES | G9: =AVERAGE(F10:F15) -> 68%
A10: Value to Customer | B10: How Important are you to Customer | C10: Important | D10: =VLOOKUP(F10,$R$2:$S$6,2) -> Poor | F10: =(SUM(Questions!D30:D34))/(COUNT(Questions!D30:D34)*5) -> 44% | G10: =AVERAGE(F10:F12) -> 76% | J10: =COUNTIF(Questions!$C$30:$C$34,Questions!$F$2) -> 3 | K10: =COUNTIF(Questions!$C$30:$C$34,Questions!$F$3) -> 0 | L10: =COUNTIF(Questions!$C$30:$C$34,Questions!$F$4) -> 1 | M10: =COUNTIF(Questions!$C$30:$C$34,Questions!$F$5) -> 0 | N10: =COUNTIF(Questions!$C$30:$C$34,Questions!$F$6) -> 1
B11: Competitive Advantage | C11: High | D11: =VLOOKUP(F11,$R$2:$S$6,2) -> Average | F11: =(SUM(Questions!D35:D39))/(COUNT(Questions!D35:D39)*5) -> 84% | J11: =COUNTIF(Questions!$C$35:$C$39,Questions!$F$2) -> 1 | K11: =COUNTIF(Questions!$C$35:$C$39,Questions!$F$3) -> 0 | L11: =COUNTIF(Questions!$C$35:$C$39,Questions!$F$4) -> 0 | M11: =COUNTIF(Questions!$C$35:$C$39,Questions!$F$5) -> 0 | N11: =COUNTIF(Questions!$C$35:$C$39,Questions!$F$6) -> 4
B12: Price/Value Relationship | C12: Low | D12: Excellent | F12: =(SUM(Questions!D40:D43))/(COUNT(Questions!D40:D43)*5) -> 100% | J12: =COUNTIF(Questions!$C$40:$C$43,Questions!$F$2) -> 0 | K12: =COUNTIF(Questions!$C$40:$C$43,Questions!$F$3) -> 0 | L12: =COUNTIF(Questions!$C$40:$C$43,Questions!$F$4) -> 0 | M12: =COUNTIF(Questions!$C$40:$C$43,Questions!$F$5) -> 0 | N12: =COUNTIF(Questions!$C$40:$C$43,Questions!$F$6) -> 4
A13: Customer Acquisition Cost | B13: Entry Points | C13: Many | D13: Poor | F13: =(SUM(Questions!D44:D47))/(COUNT(Questions!D44:D47)*5) -> 20% | G13: =AVERAGE(F13:F15) -> 60% | J13: =COUNTIF(Questions!$C$44:$C$47,Questions!$F$2) -> 4 | K13: =COUNTIF(Questions!$C$44:$C$47,Questions!$F$3) -> 0 | L13: =COUNTIF(Questions!$C$44:$C$47,Questions!$F$4) -> 0 | M13: =COUNTIF(Questions!$C$44:$C$47,Questions!$F$5) -> 0 | N13: =COUNTIF(Questions!$C$44:$C$47,Questions!$F$6) -> 0
B14: Sales Support Required | C14: Little | D14: Excellent | F14: =(SUM(Questions!D48:D52))/(COUNT(Questions!D48:D52)*5) -> 100% | J14: =COUNTIF(Questions!$C$48:$C$52,Questions!$F$2) -> 0 | K14: =COUNTIF(Questions!$C$48:$C$52,Questions!$F$3) -> 0 | L14: =COUNTIF(Questions!$C$48:$C$52,Questions!$F$4) -> 0 | M14: =COUNTIF(Questions!$C$48:$C$52,Questions!$F$5) -> 0 | N14: =COUNTIF(Questions!$C$48:$C$52,Questions!$F$6) -> 5
B15: Promotional Activities | C15: Low | D15: Poor | F15: =(SUM(Questions!D53:D57))/(COUNT(Questions!D53:D57)*5) -> 60% | J15: =COUNTIF(Questions!$C$53:$C$57,Questions!$F$2) -> 2 | K15: =COUNTIF(Questions!$C$53:$C$57,Questions!$F$3) -> 0 | L15: =COUNTIF(Questions!$C$53:$C$57,Questions!$F$4) -> 0 | M15: =COUNTIF(Questions!$C$53:$C$57,Questions!$F$5) -> 2 | N15: =COUNTIF(Questions!$C$53:$C$57,Questions!$F$6) -> 1
A16: LONG LIFE | G16: =AVERAGE(F17:F22) -> 26%
A17: Profit per Sale | B17: Margins | C17: High | D17: Poor | F17: =(SUM(Questions!D58:D58))/(COUNT(Questions!D58:D58)*5) -> 20% | G17: =AVERAGE(F17:F19) -> 29% | J17: =COUNTIF(Questions!$C$58:$C$58,Questions!$F$2) -> 1 | K17: =COUNTIF(Questions!$C$58:$C$58,Questions!$F$3) -> 0 | L17: =COUNTIF(Questions!$C$58:$C$58,Questions!$F$4) -> 0 | M17: =COUNTIF(Questions!$C$58:$C$58,Questions!$F$5) -> 0 | N17: =COUNTIF(Questions!$C$58:$C$58,Questions!$F$6) -> 0
B18: Up-Selling and Cross-Selling | C18: Much | D18: Poor | F18: =(SUM(Questions!D59:D62))/(COUNT(Questions!D59:D62)*5) -> 30% | J18: =COUNTIF(Questions!$C$59:$C$62,Questions!$F$2) -> 3 | K18: =COUNTIF(Questions!$C$59:$C$62,Questions!$F$3) -> 0 | L18: =COUNTIF(Questions!$C$59:$C$62,Questions!$F$4) -> 1 | M18: =COUNTIF(Questions!$C$59:$C$62,Questions!$F$5) -> 0 | N18: =COUNTIF(Questions!$C$59:$C$62,Questions!$F$6) -> 0
B19: Ongoing Product Cost | C19: Low | D19: Poor | F19: =(SUM(Questions!D63:D67))/(COUNT(Questions!D63:D67)*5) -> 36% | J19: =COUNTIF(Questions!$C$63:$C$67,Questions!$F$2) -> 3 | K19: =COUNTIF(Questions!$C$63:$C$67,Questions!$F$3) -> 0 | L19: =COUNTIF(Questions!$C$63:$C$67,Questions!$F$4) -> 2 | M19: =COUNTIF(Questions!$C$63:$C$67,Questions!$F$5) -> 0 | N19: =COUNTIF(Questions!$C$63:$C$67,Questions!$F$6) -> 0
A20: Investment Required | B20: To Enter Business | C20: Low | D20: Poor | F20: =(SUM(Questions!D68:D71))/(COUNT(Questions!D68:D71)*5) -> 30% | G20: =AVERAGE(F20:F22) -> 23% | J20: =COUNTIF(Questions!$C$68:$C$71,Questions!$F$2) -> 3 | K20: =COUNTIF(Questions!$C$68:$C$71,Questions!$F$3) -> 0 | L20: =COUNTIF(Questions!$C$68:$C$71,Questions!$F$4) -> 1 | M20: =COUNTIF(Questions!$C$68:$C$71,Questions!$F$5) -> 0 | N20: =COUNTIF(Questions!$C$68:$C$71,Questions!$F$6) -> 0
B21: To Keep Market Share | C21: Low | D21: Poor | F21: =(SUM(Questions!D73:D76))/(COUNT(Questions!D73:D76)*5) -> 20% | J21: =COUNTIF(Questions!$C$73:$C$76,Questions!$F$2) -> 4 | K21: =COUNTIF(Questions!$C$73:$C$76,Questions!$F$3) -> 0 | L21: =COUNTIF(Questions!$C$73:$C$76,Questions!$F$4) -> 0 | M21: =COUNTIF(Questions!$C$73:$C$76,Questions!$F$5) -> 0 | N21: =COUNTIF(Questions!$C$73:$C$76,Questions!$F$6) -> 0
B22: To Stay on the Cutting Edge | C22: Low | D22: Poor | F22: =(SUM(Questions!D77:D81))/(COUNT(Questions!D77:D81)*5) -> 20% | J22: =COUNTIF(Questions!$C$77:$C$81,Questions!$F$2) -> 5 | K22: =COUNTIF(Questions!$C$77:$C$81,Questions!$F$3) -> 0 | L22: =COUNTIF(Questions!$C$77:$C$81,Questions!$F$4) -> 0 | M22: =COUNTIF(Questions!$C$77:$C$81,Questions!$F$5) -> 0 | N22: =COUNTIF(Questions!$C$77:$C$81,Questions!$F$6) -> 0
A23: Business Model Effectiveness Score | G23: =AVERAGE(G2,G9,G16) -> 52% | J23: =COUNTIF(Questions!C2:C81,Questions!F2) -> 35 | K23: =COUNTIF(Questions!C2:C81,Questions!F3) -> 3 | L23: =COUNTIF(Questions!C2:C81,Questions!F4) -> 17 | M23: =COUNTIF(Questions!C2:C81,Questions!F5) -> 6 | N23: =COUNTIF(Questions!C2:C81,Questions!F6) -> 19
A29: =A2 -> GREAT CUSTOMERS | B29: =G2 -> 63%
A30: =A9 -> EASY SALES | B30: =G9 -> 68%
A31: =A16 -> LONG LIFE | B31: =G16 -> 26%
A34: =A3 -> Customer Characteristics | B34: =G3 -> 69%
A35: =A6 -> Customer Value to Company | B35: =G6 -> 57%
A36: =A10 -> Value to Customer | B36: =G10 -> 76%
A37: =A13 -> Customer Acquisition Cost | B37: =G13 -> 60%
A38: =A17 -> Profit per Sale | B38: =G17 -> 29%
A39: =A20 -> Investment Required | B39: =G20 -> 23%
A41: =B3 -> Number | B41: =F3 -> 60%
A42: Ease of Finding | B42: 67%
A43: Spending Pattern | B43: 80%
A44: $ Value of Sale | B44: 56%
A45: Repeat Sales | B45: 70%
A46: Ongoing Sales Support | B46: 44%
A47: =B10 -> How Important are you to Customer | B47: =F10 -> 44%
A48: Competitive Advantage | B48: 84%
A49: Price/Value Relationship | B49: 100%
A50: Entry Points | B50: 20%
A51: Sales Support Required | B51: 100%
A52: Promotional Activities | B52: 60%
A53: =B17 -> Margins | B53: =F17 -> 20%
A54: Up-Selling and Cross-Selling | B54: 30%
A55: Ongoing Product Cost | B55: 36%
A56: To Enter Business | B56: 30%
A57: To Keep Market Share | B57: 20%
A58: To Stay on the Cutting Edge | B58: 20%
